fUSD/lending_fUSD_20260213
["ID","MTS","AMOUNT","RATE_DAILY","PERIOD"]
[405318095,1770990645069,-500.0,0.00013698,2]
[405318096,1770990645079,-500.0,0.00013698,2]
[405318097,1770990645088,-500.0,0.00013698,2]
[405318098,1770990645097,-500.0,0.00013698,2]
[405318099,1770990645107,-500.0,0.00013698,2]
[405318100,1770990645116,-500.0,0.00013698,2]
[405318101,1770990645126,-500.0,0.00013698,2]
[405318102,1770990645135,-500.0,0.00013698,2]
[405318103,1770990645145,-500.0,0.00013698,2]
[405318104,1770990645154,-500.0,0.00013698,2]
[405318105,1770990645164,-495.54112114,0.00013698,2]
[405318106,1770990645174,-616.8,0.00013698,2]
[405318107,1770990645184,-616.8,0.00013698,2]
[405318108,1770990645193,-616.8,0.00013698,2]
[405318109,1770990645203,-616.8,0.00013698,2]
[405318110,1770990645212,-616.8,0.00013698,2]
[405318111,1770990645222,-616.8,0.00013698,2]
[405318112,1770990645231,-616.8,0.00013698,2]
[405318113,1770990645240,-616.8,0.00013698,2]
[405318114,1770990645250,-616.8,0.00013698,2]
[405318115,1770990645261,-616.8,0.00013698,2]
[405318116,1770990645270,-616.8,0.00013698,2]
[405318117,1770990645280,-616.8,0.00013698,2]
[405318118,1770990645289,-616.8,0.00013698,2]
[405318119,1770990645299,-616.8,0.00013698,2]
[405318120,1770990645308,-616.8,0.00013698,2]
[405318121,1770990645317,-616.8,0.00013698,2]
[405318122,1770990645326,-616.8,0.00013698,2]
[405318123,1770990645335,-616.8,0.00013698,2]
[405318124,1770990645344,-616.8,0.00013698,2]
[405318125,1770990645354,-616.8,0.00013698,2]
[405318126,1770990645363,-616.8,0.00013698,2]
[405318127,1770990645373,-616.8,0.00013698,2]
[405318128,1770990645382,-616.8,0.00013698,2]
[405318129,1770990645390,-616.90997361,0.00013698,2]
[405318130,1770990645399,-1137.19,0.00013698,2]
[405318131,1770990645409,-1137.19,0.00013698,2]
[405318132,1770990645419,-1137.19,0.00013698,2]
[405318133,1770990645428,-1137.19,0.00013698,2]
[405318134,1770990645437,-1137.19,0.00013698,2]
[405318135,1770990645446,-1137.19,0.00013698,2]
[405318136,1770990645455,-1137.19,0.00013698,2]
[405318137,1770990645465,-1137.19,0.00013698,2]
[405318138,1770990645474,-1137.19,0.00013698,2]
[405318139,1770990645486,-1137.19,0.00013698,2]
[405318140,1770990645495,-1137.19,0.00013698,2]
[405318141,1770990645505,-1137.19,0.00013698,2]
[405318142,1770990645523,-1137.19,0.00013698,2]
[405318143,1770990645534,-1137.19,0.00013698,2]
[405318144,1770990645543,-500.0,0.00013698,2]
[405318145,1770990645553,-1137.19,0.00013698,2]
[405318146,1770990645565,-500.0,0.00013698,2]
[405318147,1770990645575,-1137.19,0.00013698,2]
[405318148,1770990645584,-500.0,0.00013698,2]
[405318149,1770990645593,-1137.19,0.00013698,2]
[405318150,1770990645604,-500.0,0.00013698,2]
[405318151,1770990645617,-1137.19,0.00013698,2]
[405318152,1770990645626,-500.0,0.00013698,2]
[405318153,1770990645636,-1137.19,0.00013698,2]
[405318154,1770990645645,-1137.19,0.00013698,2]
[405318155,1770990645657,-500.0,0.00013698,2]
[405318156,1770990645666,-1137.19,0.00013698,2]
[405318157,1770990645676,-500.0,0.00013698,2]
[405318158,1770990645685,-1137.19,0.00013698,2]
[405318159,1770990645695,-500.0,0.00013698,2]
[405318160,1770990645707,-1137.19,0.00013698,2]
[405318161,1770990645716,-500.0,0.00013698,2]
[405318162,1770990645726,-1137.37012897,0.00013698,2]
[405318163,1770990645736,-500.0,0.00013698,2]
[405318164,1770990645745,-500.0,0.00013698,2]
[405318165,1770990645758,-500.0,0.00013698,2]
[405318166,1770990645768,-500.0,0.00013698,2]
[405318167,1770990645784,-500.0,0.00013698,2]
[405318168,1770990645795,-606.16370174,0.00013698,2]
[405318169,1770990645806,-500.0,0.00013698,2]
[405318170,1770990645816,-500.0,0.00013698,2]
[405318171,1770990645827,-500.0,0.00013698,2]
[405318172,1770990645838,-500.0,0.00013698,2]
[405318173,1770990645849,-500.0,0.00013698,2]
[405318174,1770990645861,-500.0,0.00013698,2]
[405318175,1770990645871,-502.60181958,0.00013698,2]
[405318176,1770990645883,-500.0,0.00013698,2]
[405318177,1770990645894,-500.0,0.00013698,2]
[405318178,1770990645905,-570.74622544,0.00013698,2]
[405318179,1770990645917,-5193.21,0.00013699,2]
[405318180,1770990645927,-3975.1,0.00013699,2]
[405318181,1770990645938,-200.0,0.00013699,2]
[405318182,1770990645948,-151.0,0.00013699,2]
[405318183,1770990645961,-151.0,0.00013699,2]
[405318184,1770990645971,-151.0,0.00013699,2]
[405318185,1770990645982,-151.0,0.00013699,2]
[405318186,1770990645995,-151.0,0.00013699,2]
[405318187,1770990646008,-164.535003,0.00013699,2]
[405318188,1770990646019,-315.64,0.00013699,2]
[405318189,1770990646030,-263.03,0.00013699,2]
[405318190,1770990646042,-219.2,0.00013699,2]
[405318191,1770990646053,-501.86536618,0.00013699,2]
[405318192,1770990646065,-504.64635869,0.00013699,2]
[405318193,1770990646077,-500.0,0.00013699,2]
[405318194,1770990646087,-500.0,0.00013699,2]
[405318195,1770990646098,-500.0,0.00013699,2]
[405318196,1770990646109,-500.0,0.00013699,2]
[405318197,1770990646119,-523.38790063,0.00013699,2]
[405318198,1770990646130,-500.0,0.00013699,2]
[405318199,1770990646140,-162.32234067,0.00013699,2]
[405318200,1770990646150,-502.51804704,0.00013699,2]
[405318201,1770990646164,-500.0,0.00013699,2]
[405318202,1770990646175,-163.79829238,0.00013699,2]
[405318203,1770990646188,-500.0,0.00013699,2]
[405318204,1770990646200,-500.0,0.00013699,2]
[405318205,1770990646214,-500.0,0.00013699,2]
[405318206,1770990646227,-502.22718587,0.00013699,2]
[405318207,1770990646237,-500.0,0.00013699,2]
[405318208,1770990646248,-500.0,0.00013699,2]
[405318209,1770990646261,-502.68727614,0.00013699,2]
[405318210,1770990646273,-161.79452936,0.00013699,2]
[405318211,1770990646285,-500.71447889,0.00013699,2]
[405318212,1770990646297,-161.87999036,0.00013699,2]
[405318213,1770990646311,-500.0,0.00013699,2]
[405318214,1770990646320,-160.21755822,0.00013699,2]
[405318215,1770990646331,-500.0,0.00013699,2]
[405318216,1770990646340,-500.0,0.00013699,2]
[405318217,1770990646351,-160.94815484,0.00013699,2]
[405318218,1770990646362,-500.0,0.00013699,2]
[405318219,1770990646376,-500.0,0.00013699,2]
[405318220,1770990646386,-500.2976467,0.00013699,2]
[405318221,1770990646399,-160.37994263,0.00013699,2]
[405318222,1770990646411,-500.9662317,0.00013699,2]
[405318223,1770990646423,-559.21826775,0.00013699,2]
[405318224,1770990646434,-500.0,0.00013699,2]
[405318225,1770990646447,-501.45759007,0.00013699,2]
[405318226,1770990646459,-500.0,0.00013699,2]
[405318227,1770990646474,-500.0,0.00013699,2]
[405318228,1770990646487,-500.0,0.00013699,2]
[405318229,1770990646504,-500.0,0.00013699,2]
[405318230,1770990646522,-161.5226786,0.00013699,2]
[405318231,1770990646532,-514.01890728,0.00013699,2]
[405318232,1770990646541,-160.36449504,0.00013699,2]
[405318233,1770990646551,-501.58203416,0.00013699,2]
[405318234,1770990646561,-502.97943379,0.00013699,2]
[405318235,1770990646572,-501.3619325,0.00013699,2]
[405318236,1770990646582,-501.62702372,0.00013699,2]
[405318237,1770990646592,-500.0,0.00013699,2]
[405318238,1770990646603,-500.0,0.00013699,2]
[405318239,1770990646613,-502.19144645,0.00013699,2]
[405318240,1770990646623,-185.89561959,0.00013699,2]
[405318241,1770990646634,-567.62074081,0.00013699,2]
[405318242,1770990646643,-501.43225284,0.00013699,2]
[405318243,1770990646654,-500.0,0.00013699,2]
[405318244,1770990646664,-500.0,0.00013699,2]
[405318245,1770990646674,-441.54821717,0.00013699,2]
[405318246,1770990646684,-170.11819774,0.00013699,2]
[405318247,1770990646693,-596.02960806,0.00013699,2]
[405318248,1770990646703,-377.55295707,0.00013699,2]
[405318249,1770990646713,-500.0,0.00013699,2]
[405318250,1770990646723,-500.0,0.00013699,2]
[405318251,1770990646734,-500.0,0.00013699,2]
[405318252,1770990646743,-150.0,0.00013699,2]
[405318253,1770990646754,-150.15498322,0.000137,2]
[405318254,1770990646764,-203.44119,0.00013754,2]
[405318256,1770990646774,-230.0,0.00013859,2]
[405318257,1770990646784,-30413.48679149,0.00013867,2]
[405318258,1770990646794,-300.0,0.000139,5]
[405318259,1770990646804,-500.0,0.00013915,2]
[405318260,1770990646813,-221.0,0.00013915,2]
[405318261,1770990646823,-272.09644535,0.00013959,2]
[405318262,1770990646833,-291.82801737,0.00013959,2]
[405318263,1770990646843,-500.0,0.00014027,2]
[405318264,1770990646854,-402.0,0.00014175,2]
[405318265,1770990646864,-62232.99172024,0.00014203,2]
[405318266,1770990646874,-1000.0,0.00014247,2]
[405318267,1770990646884,-1000.0,0.00014247,2]
[405318268,1770990646894,-1000.0,0.00014247,2]
[405318269,1770990646904,-1000.0,0.00014247,2]
[405318271,1770990646914,-1095.58692037,0.00014247,2]
[405318272,1770990646924,-1002.46426974,0.00014247,2]
[405318273,1770990646934,-1000.0,0.00014247,2]
[405318274,1770990646944,-1000.0,0.00014247,2]
[405318275,1770990646954,-516.39838794,0.00014247,2]
[405318276,1770990646965,-1000.0,0.00014247,2]
[405318277,1770990646977,-1000.0,0.00014247,2]
[405318278,1770990646987,-1000.0,0.00014247,2]
[405318279,1770990646997,-460.18108091,0.00014247,2]
[405318280,1770990647008,-1000.0,0.00014247,2]
[405318281,1770990647018,-1000.0,0.00014247,2]
[405318282,1770990647029,-1000.0,0.00014247,2]
[405318283,1770990647038,-1000.0,0.00014247,2]
[405318284,1770990647048,-651.60051968,0.00014247,2]
[405318285,1770990647058,-1002.86775924,0.00014247,2]
[405318286,1770990647070,-1000.0,0.00014247,2]
[405318287,1770990647080,-1000.0,0.00014247,2]
[405318288,1770990647090,-1000.0,0.00014247,2]
[405318289,1770990647100,-1000.0,0.00014247,2]
[405318290,1770990647111,-1000.0,0.00014247,2]
[405318291,1770990647122,-895.51801597,0.00014247,2]
[405318292,1770990647132,-1000.0,0.00014247,2]
[405318293,1770990647141,-1000.0,0.00014247,2]
[405318294,1770990647152,-1000.0,0.00014247,2]
[405318295,1770990647162,-48458.0,0.000143,2]
[405318296,1770990647171,-3975.1,0.00014384,2]
[405318297,1770990647182,-160.0,0.00014442,2]
[405318298,1770990647192,-4427.0,0.00014631,2]
[405318299,1770990647203,-151.0,0.00014634,2]
[405318300,1770990647214,-1516.46648451,0.00014795,2]
[405318301,1770990647224,-1500.0,0.00014795,2]
[405318302,1770990647234,-501.69367829,0.00014795,2]
[405318303,1770990647244,-1500.0,0.00014795,2]
[405318304,1770990647255,-1492.57355052,0.00014795,2]
[405318305,1770990647266,-1500.0,0.00014795,2]
[405318306,1770990647276,-1511.15532906,0.00014795,2]
[405318307,1770990647286,-1500.0,0.00014795,2]
[405318308,1770990647296,-1500.0,0.00014795,2]
[405318309,1770990647306,-1500.0,0.00014795,2]
[405318310,1770990647315,-594.1463812,0.00014795,2]
[405318311,1770990647325,-504.47861685,0.00014795,2]
[405318312,1770990647335,-1000.0,0.00014795,2]
[405318313,1770990647344,-1500.0,0.00014795,2]
[405318314,1770990647354,-1500.0,0.00014795,2]
[405318315,1770990647363,-800.97860377,0.00014795,2]
[405318316,1770990647373,-1500.0,0.00014795,2]
[405318317,1770990647382,-1505.92637205,0.00014795,2]
[405318318,1770990647391,-1189.48508618,0.00014795,2]
[405318319,1770990647401,-1530.73212688,0.00014795,2]
[405318320,1770990647411,-505.49608217,0.00014795,2]
[405318321,1770990647420,-5531.0,0.000148,3]
[405318322,1770990647430,-593.934588,0.00014876,7]
[405318323,1770990647439,-30413.48679149,0.00014882,2]
[405318324,1770990647449,-175.99354659,0.000149,2]
[405318325,1770990647459,-175.99354657,0.000149,2]
[405318326,1770990647468,-175.99354657,0.000149,2]
[405318327,1770990647477,-2000.0,0.000149,2]
[405318328,1770990647490,-241.0,0.00014997,2]
[405318329,1770990647500,-250.0,0.00015,2]
[405318330,1770990647510,-900.0,0.00015068,2]
[405318331,1770990647519,-3975.1,0.00015068,2]
[405318332,1770990647530,-5531.0,0.000153,5]
[405318333,1770990647540,-259.376497,0.00015321,7]
[405318334,1770990647549,-219.10008095,0.00015342,2]
[405318335,1770990647559,-385.22876049,0.00015342,2]
[405318336,1770990647570,-2003.05497251,0.00015342,2]
[405318337,1770990647580,-2000.0,0.00015342,2]
[405318338,1770990647590,-2008.47777759,0.00015342,2]
[405318339,1770990647599,-2000.0,0.00015342,2]
[405318340,1770990647609,-2000.0,0.00015342,2]
[405318341,1770990647619,-2000.0,0.00015342,2]
[405318342,1770990647629,-939.8305345,0.00015342,2]
[405318343,1770990647639,-62232.99172024,0.00015444,2]
[405318344,1770990647648,-2516.83516378,0.0001561,2]
[405318345,1770990647658,-3975.1,0.00015753,2]
[405318346,1770990647668,-161.0,0.00015819,2]
[405318347,1770990647678,-2287.66016397,0.0001589,2]
[405318348,1770990647687,-960.3517219,0.0001589,2]
[405318349,1770990647697,-1504.4856347,0.0001589,2]
[405318350,1770990647707,-2266.54635509,0.0001589,2]
[405318351,1770990647716,-30413.48679149,0.00015897,2]
[405318352,1770990647726,-700.0,0.000159,5]
[405318353,1770990647736,-161.84,0.00015959,2]
[405318354,1770990647745,-262.74959238,0.00016,2]
[405318355,1770990647756,-1834.0,0.00016094,2]
[405318356,1770990647766,-9999.99,0.00016116,2]
[405318357,1770990647775,-235.33,0.00016372,2]
[405318358,1770990647785,-900.0,0.00016438,2]
[405318359,1770990647795,-3975.1,0.00016438,2]
[405318360,1770990647804,-151.02975848,0.00016438,2]
[405318361,1770990647815,-329.0,0.00016559,2]
[405318362,1770990647824,-329.0,0.00016569,2]
[405318363,1770990647834,-329.0,0.00016653,2]
[405318364,1770990647844,-374.44,0.00016655,2]
[405318365,1770990647854,-329.0,0.00016677,2]
[405318366,1770990647864,-62232.99172024,0.00016686,2]
[405318367,1770990647873,-199.17,0.00016712,2]
[405318368,1770990647883,-329.0,0.00016753,2]
[405318369,1770990647892,-329.0,0.00016756,2]
[405318370,1770990647902,-329.0,0.00016756,2]
[405318371,1770990647911,-329.0,0.00016757,2]
[405318372,1770990647921,-329.0,0.00016779,2]
[405318373,1770990647932,-329.0,0.000168,2]
[405318374,1770990647941,-329.0,0.0001681,2]
[405318375,1770990647951,-329.0,0.00016841,2]
[405318376,1770990647960,-329.0,0.00016865,2]
[405318377,1770990647970,-30413.48679149,0.00016912,2]
[405318378,1770990647979,-4652.09014242,0.00017,2]
[405318379,1770990647989,-300.0,0.00017,2]
[405318380,1770990647999,-329.0,0.00017006,2]
[405318381,1770990648009,-329.0,0.00017008,2]
[405318382,1770990648018,-329.0,0.0001701,2]
[405318383,1770990648028,-168.0,0.00017045,2]
[405318384,1770990648038,-329.0,0.00017046,2]
[405318385,1770990648048,-329.0,0.00017056,2]
[405318386,1770990648057,-329.0,0.00017092,2]
[405318387,1770990648067,-168.0,0.00017104,2]
[405318388,1770990648077,-329.0,0.0001716,2]
[405318389,1770990648087,-329.0,0.00017162,2]
[405318390,1770990648096,-329.0,0.00017187,2]
[405318391,1770990648106,-168.0,0.00017338,2]
[405318392,1770990648116,-1100.0,0.000176,6]
[405318393,1770990648126,-1000.0,0.00017667,7]
[405318394,1770990648135,-1500.0,0.000177,6]
[405318395,1770990648145,-1900.0,0.000178,6]
[405318396,1770990648155,-500.0,0.00017808,2]
[405318397,1770990648165,-801.45328236,0.00017808,2]
[405318398,1770990648175,-500.0,0.00017863,2]
[405318399,1770990648185,-365.93929912,0.000179,3]
[405318400,1770990648195,-300.0,0.000179,6]
[405318401,1770990648206,-500.0,0.00017918,2]
[405318402,1770990648215,-62232.99172024,0.00017927,2]
[405318403,1770990648225,-30413.48679149,0.00017927,2]
[405318404,1770990648236,-500.49095607,0.00017959,3]
[405318405,1770990648245,-500.0,0.00017972,2]
[405318406,1770990648255,-860.02590149,0.0001799,2]
[405318407,1770990648265,-300.0,0.00017999,2]
[405318408,1770990648275,-1499394.11935314,0.00018,2]
[405318409,1770990648285,-34777.23406205,0.00018,2]
[405318410,1770990648295,-1595011.80778383,0.00018,2]
[405318411,1770990648811,-182.66,0.00013699,2]
[405318412,1770990648821,-111.2702,0.00018,2]
[405318413,1770990648854,-9303.0,0.00011397,2]
[405318414,1770990648863,-319284.6908411,0.00018,2]
[405318415,1770990648875,-7633.13592568,0.00018,2]
[405318416,1770990648890,-325.30831617,0.00018,2]
[405318417,1770990648901,-384.16381572,0.00018,2]
[405318418,1770990648912,-1070.54068683,0.00018,2]
[405318419,1770990648927,-1902.07,0.00018,2]
[405318420,1770990648939,-3326.83136312,0.00018,2]
[405318421,1770990648954,-1819.1209591,0.00018,2]
[405318422,1770990649199,-690.4,0.00018,2]
[405318423,1770990649244,-1751.42205705,0.00010999,2]
[405318424,1770990649255,-5382.54526727,0.00018,2]
[405318425,1770990649266,-6297.0,0.00018,2]
[405318426,1770990649323,-1121.30975173,0.00018,2]
[405318427,1770990649335,-756.45735762,0.00018,2]
[405318428,1770990649347,-695.55,0.00018,2]
[405318429,1770990649363,-6189.44989161,0.00018,2]
[405318430,1770990649374,-6977.9,0.00018,2]
[405318468,1770991386644,-479.5459,8.793e-05,2]
[405318469,1770991386669,-300.0,8.892e-05,2]
[405318470,1770991386694,-500.0,8.893e-05,2]
[405318471,1770991386718,-160.11669161,8.893e-05,2]
[405318472,1770991386746,-500.0,8.893e-05,2]
[405318473,1770991386772,-500.0,8.893e-05,2]
[405318474,1770991386797,-500.0,8.893e-05,2]
[405318475,1770991386824,-500.0,8.893e-05,2]
[405318476,1770991386850,-500.0,8.893e-05,2]
[405318477,1770991386874,-166.66792853,8.893e-05,2]
[405318478,1770991386898,-393.66947986,8.893e-05,2]
[405318497,1770991831359,-150.0,8.892e-05,2]
[405318498,1770991831368,-187.095,8.892e-05,2]
[405318499,1770991831379,-112.905,8.892e-05,2]
[405318500,1770991831389,-1200.0,8.892e-05,2]
[405318501,1770991831398,-500.0,8.893e-05,2]
[405318502,1770991831407,-545.44406708,8.893e-05,2]
[405318503,1770991831421,-500.0,8.893e-05,2]
[405318504,1770991831430,-500.0,8.893e-05,2]
[405318505,1770991831440,-542.88715451,8.893e-05,2]
[405318506,1770991831449,-500.0,8.893e-05,2]
[405318507,1770991831459,-500.0,8.893e-05,2]
[405318508,1770991831468,-376.63664137,8.893e-05,2]
[405318509,1770991831477,-571.24633497,8.893e-05,2]
[405318510,1770991831488,-500.0,8.893e-05,2]
[405318511,1770991831497,-500.0,8.893e-05,2]
[405318512,1770991831506,-500.0,8.893e-05,2]
[405318513,1770991831515,-151.85157988,8.893e-05,2]
[405318514,1770991831527,-1000.0,9.441e-05,2]
[405318515,1770991831537,-1000.0,9.441e-05,2]
[405318516,1770991831546,-1000.0,9.441e-05,2]
[405318517,1770991831556,-384.25817303,9.441e-05,2]
[405318518,1770991831565,-1000.0,9.441e-05,2]
[405318519,1770991831575,-1000.0,9.441e-05,2]
[405318520,1770991831585,-300.0,9.7e-05,3]
[405318521,1770991831594,-255.0,9.781e-05,2]
[405318523,1770991831603,-420.0,9.781e-05,2]
[405318524,1770991831615,-1680.0,9.781e-05,2]
[405318525,1770991831624,-700.0,9.8e-05,3]
[405318527,1770991831634,-1100.0,9.9e-05,3]
[405318529,1770991831644,-1500.0,9.988e-05,2]
[405318531,1770991831653,-1500.0,9.988e-05,2]
[405318533,1770991831662,-1500.0,9.988e-05,2]
[405318535,1770991831672,-1500.0,9.988e-05,2]
[405318536,1770991831681,-1500.0,9.988e-05,2]
[405318537,1770991831690,-1500.0,0.0001,3]
[405318539,1770991831699,-200.0,0.00010097,2]
[405318542,1770991831708,-19503.67764486,0.00010341,2]
[405318544,1770991831717,-1682.81804579,0.00010341,2]
[405318546,1770991831726,-802.07004863,0.00010341,2]
[405318548,1770991831735,-860.02590149,0.00010426,2]
[405318550,1770991831744,-307073.53664222,0.00010436,2]
[405318552,1770991831755,-195256.68260408,0.00010436,2]
[405318553,1770991831766,-29614.21096481,0.00010436,2]
[405318554,1770991831783,-2364.61060515,0.00010436,2]
[405318557,1770991837392,-506.74432434,0.00010436,2]
[405318558,1770991837602,-615.22900806,0.00010436,2]
[405318559,1770991837617,-1341.69773257,0.00010436,2]
[405318560,1770991837628,-1260.0,0.00010436,2]
[405318561,1770991837639,-1118.10003,0.00010436,2]
[405318562,1770991837651,-2983.93557081,0.00010436,2]
[405318563,1770991837663,-2957865.25251796,0.00010436,2]
[405318564,1770991837673,-2208.40844553,0.00010441,2]
[405318565,1770991837682,-277.03,0.00010461,2]
[405318566,1770991837691,-2000.0,0.00010536,2]
[405318567,1770991837701,-1964.93718194,0.00010536,2]
[405318568,1770991837711,-2000.0,0.00010536,2]
[405318569,1770991837721,-503.71008588,0.00010536,2]
[405318570,1770991837730,-2000.0,0.00010536,2]
[405318571,1770991837740,-433.0,0.00010759,2]
[405318573,1770991837753,-587.0,0.00010759,2]
[405318575,1770991837763,-2351.0,0.00010759,2]
[405318577,1770991837773,-5698.42074615,0.000109,2]
[405318579,1770991837782,-184.33,0.00010959,2]
[405318581,1770991837792,-300.0,0.00011049,7]
[405318583,1770991837801,-2266.54635509,0.00011084,2]
[405318585,1770991837810,-2500.0,0.00011084,2]
[405318587,1770991837820,-2500.0,0.00011084,2]
[405318589,1770991837829,-860.02590149,0.00011089,2]
[405318591,1770991837838,-30413.4867915,0.00011099,2]
[405318593,1770991837848,-30413.48679149,0.00011167,2]
[405318595,1770991837857,-5698.42074612,0.00011421,2]
[405318596,1770991837866,-3000.0,0.00011632,2]
[405318598,1770991837876,-1694.92260426,0.00011632,2]
[405318600,1770991837886,-250.0,0.00011749,2]
[405318602,1770991837898,-277.03,0.00011769,2]
[405318604,1770991837908,-736.0,0.00011835,2]
[405318606,1770991837917,-823.0,0.00011835,2]
[405318608,1770991837927,-3292.0,0.00011835,2]
[405318610,1770991837936,-166.66,0.00011875,2]
[405318612,1770991837945,-299.55,0.00011946,2]
[405318614,1770991837954,-30413.48679149,0.00011993,2]
[405318616,1770991837965,-150.99,0.00012025,2]
[405318618,1770991837974,-9999.99,0.00012025,2]
[405318620,1770991837983,-166.66,0.00012125,2]
[405318622,1770991837992,-2947.61473378,0.0001218,2]
[405318624,1770991838001,-802.0700486,0.00012231,2]
[405318626,1770991838011,-4083.14,0.00012246,2]
[405318628,1770991838020,-500.0,0.00012299,2]
[405318630,1770991838030,-209.72391114,0.00012299,2]
[405318632,1770991838039,-500.0,0.00012299,2]
[405318634,1770991838048,-500.0,0.00012299,2]
[405318636,1770991838058,-306.61140154,0.00012299,2]
[405318638,1770991838068,-500.0,0.00012299,2]
[405318640,1770991838078,-48458.0,0.000123,2]
[405318642,1770991838087,-1205.80144418,0.00012327,2]
[405318644,1770991838096,-166.66,0.00012375,2]
[405318645,1770991838105,-5698.42074612,0.00012501,2]
[405318646,1770991838114,-166.66,0.00012625,2]
[405318647,1770991838127,-26985.4,0.00012677,2]
[405318648,1770991838147,-542.0,0.00012744,2]
[405318649,1770991838170,-150.0,0.00012744,2]
[405318650,1770991838179,-542.0,0.00012799,2]
[405318651,1770991838188,-150.0,0.00012799,2]
[405318652,1770991838198,-5531.0,0.000128,3]
[405318653,1770991838207,-30413.48679149,0.00012819,2]
[405318654,1770991838217,-542.0,0.00012854,2]
[405318656,1770991838226,-170.0,0.00012854,2]
[405318657,1770991838235,-166.66,0.00012875,2]
[405318658,1770991838244,-6538.83533642,0.0001288,2]
[405318661,1770991838254,-1900.0,0.000129,4]
[405318663,1770991838264,-542.0,0.00012908,2]
[405318664,1770991838274,-542.0,0.00012963,2]
[405318666,1770991838283,-1139.0,0.00013017,2]
[405318668,1770991838292,-542.0,0.00013018,2]
[405318670,1770991838302,-1152.0,0.00013018,2]
[405318672,1770991838312,-4609.0,0.00013018,2]
[405318675,1770991838321,-542.0,0.00013073,2]
[405318677,1770991838331,-277.03,0.00013077,2]
[405318678,1770991838340,-166.66,0.00013125,2]
[405318679,1770991838350,-542.0,0.00013128,2]
[405318680,1770991838360,-1803.849,0.00013132,2]
[405318681,1770991838370,-196.303,0.00013132,2]
[405318682,1770991838379,-542.0,0.00013182,2]
[405318683,1770991838389,-7168.18822777,0.00013233,2]
[405318684,1770991838399,-542.0,0.00013237,2]
[405318685,1770991838409,-280.2,0.00013246,2]
[405318686,1770991838419,-542.0,0.00013292,2]
[405318687,1770991838428,-13916.4401,0.000133,2]
[405318688,1770991838438,-2500.0,0.000133,2]
[405318689,1770991838447,-5531.0,0.000133,5]
[405318690,1770991838456,-542.0,0.00013347,2]
[405318691,1770991838467,-151.0,0.00013392,2]
[405318692,1770991838477,-151.0,0.00013392,2]
[405318693,1770991838487,-151.0,0.00013392,2]
[405318694,1770991838497,-151.0,0.00013392,2]
[405318695,1770991838507,-151.0,0.00013392,2]
[405318696,1770991838517,-151.0,0.00013392,2]
[405318697,1770991838527,-542.0,0.00013402,2]
[405318698,1770991838541,-542.0,0.00013456,2]
[405318699,1770991838551,-303918.97166954,0.00013494,2]
[405318700,1770991838561,-10000.0,0.00013499,2]
[405318701,1770991838571,-238.4124,0.00013499,2]
[405318702,1770991838581,-542.0,0.00013511,2]
[405318703,1770991838591,-477.0,0.00013533,2]
[405318704,1770991838601,-542.0,0.00013566,2]
[405318705,1770991838611,-5698.42074612,0.00013581,2]
[405318706,1770991838621,-542.0,0.00013621,2]
[405318707,1770991838631,-30413.48679149,0.00013645,2]
[405318708,1770991838642,-542.0,0.00013676,2]
[405318709,1770991838652,-500.0,0.00013698,2]
[405318710,1770991838662,-500.0,0.00013698,2]
[405318711,1770991838673,-500.0,0.00013698,2]
[405318712,1770991838683,-500.0,0.00013698,2]
[405318713,1770991838694,-500.0,0.00013698,2]
[405318714,1770991838704,-500.0,0.00013698,2]